[Event "European School-ch 2019"]
[Site "Mamaia"]
[Date "2019.06.05"]
[Round "6.53"]
[White "Zyapaeva, Polina"]
[Black "Vorobyova, Ekaterina"]
[Result "1/2-1/2"]
[ECO "A22"]
[WhiteElo "1806"]
[BlackElo "1795"]
[Annotator "NA RC"]
[PlyCount "96"]
[EventDate "2019.05.31"]
[EventType "swiss"]
[EventCountry "ROU"]
[SourceTitle "playchess.com"]
[Source "ChessBase"]
[SourceQuality "1"]
[TimeControl "40/5400+30:1800+30"]

1. c4 {[%emt 0:00:00]} e5 {[%emt 0:00:00]} 2. Nc3 {[%emt 0:00:00]} Nf6 {[%emt 0:00:00]} 3. e4 {[%emt 0:01:41]} Bb4 {[%emt 0:00:16]} 4. Qc2 {[%emt 0:15:23]} O-O {[%emt 0:01:09]} 5. Nf3 {[%emt 0:02:25]} Re8 {[%emt 0:01:07]} 6. Be2 {[%emt 0:04:40]} c6 {[%emt 0:03:02]} 7. a3 {[%emt 0:02:34]} Bxc3 {[%emt 0:05:52]} 8. dxc3 {[%emt 0:00:50]} d6 {[%emt 0:01:41]} 9. Bg5 {[%emt 0:02:15]} Nbd7 {[%emt 0:03:00]} 10. b4 {[%emt 0:01:38]} Nf8 {[%emt 0:06:04]} 11. Rd1 {[%emt 0:04:08]} Qe7 {[%emt 0:02:00]} 12. O-O {[%emt 0:05:12]} Bg4 {[%emt 0:02:24]} 13. Nh4 {[%emt 0:05:28]} Be6 {[%emt 0:03:02]} 14. g3 {[%emt 0:08:53]} Rad8 {[%emt 0:02:02]} 15. Rd2 {[%emt 0:02:27]} Rd7 {[%emt 0:04:45]} 16. Rfd1 {[%emt 0:01:17]} Red8 {[%emt 0:00:28]} 17. Nf3 {[%emt 0:07:06]} Ng6 {[%emt 0:05:41]} 18. a4 {[%emt 0:04:05]} h6 {[%emt 0:05:19]} 19. Bh4 {[%emt 0:05:30]} Bg4 {[%emt 0:04:07]} 20. Bxf6 {[%emt 0:03:21]} Qxf6 {[%emt 0:00:20]} 21. Kg2 {[%emt 0:01:36]} Qe6 {[%emt 0:02:00]} 22. h4 {[%emt 0:01:42]} Rf8 {[%emt 0:02:03]} 23. Ng1 {[%emt 0:04:58]} Bxe2 {[%emt 0:10:35]} 24. Nxe2 {[%emt 0:00:06]} Ne7 {[%emt 0:00:42]} 25. Qd3 {[%emt 0:06:19]} f5 {[%emt 0:01:41]} 26. f3 {[%emt 0:01:03]} Qg6 {[%emt 0:10:16]} 27. Qe3 {[%emt 0:03:18]} f4 {[%emt 0:05:40]} 28. Qf2 {[%emt 0:00:06]} Qe6 {[%emt 0:00:35]} 29. g4 {[%emt 0:01:47]} Rfd8 {[%emt 0:00:28]} 30. c5 {[%emt 0:03:43]} d5 {[%emt 0:00:25]} 31. exd5 {[%emt 0:00:35]} cxd5 {[%emt 0:04:01]} 32. h5 {[%emt 0:00:40]} Rf8 {[%emt 0:00:46]} 33. Kh3 {[%emt 0:00:37]} Kh8 {[%emt 0:02:18]} 34. Re1 {[%emt 0:00:26]} Ng8 {[%emt 0:01:03]} 35. Nd4 {[%emt 0:00:23]} Qf6 {[%emt 0:03:10]} 36. Nf5 {[%emt 0:00:15]} Ne7 {[%emt 0:02:53]} 37. Nd6 {[%emt 0:00:32]} e4 {[%emt 0:05:01]} 38. fxe4 {[%emt 0:00:40]} Qxc3+ {[%emt 0:00:05]} 39. Kh2 {[%emt 0:00:04]} Qxb4 {[%emt 0:02:13]} (39... Nc6 $5 {[%cal Rc6e5]} 40. exd5 Ne5 41. Rxe5 Qxe5 $15) 40. exd5 {[%emt 0:00:00]} f3 {[%emt 0:00:00]} 41. Re4 {[%emt 0:03:11]} Qb3 {[%emt 0:05:03]} 42. Red4 {[%emt 0:04:35]} Qa3 {[%emt 0:05:31]} 43. Ne4 {[%emt 0:03:44]} Qa1 {[%emt 0:02:51] [#]} (43... Qc1 $14) 44. Rd1 $1 {[%emt 0:01:32]} Qa3 {[%emt 0:00:55]} 45. R1d3 {[%emt 0:00:57]} Qa1 {[%emt 0:00:27]} 46. Nc3 {[%emt 0:01:36]} Ng8 {[%emt 0:03:12]} (46... Qa3 $14) 47. Rxf3 {[%emt 0:03:23]} Nf6 $18 {[%emt 0:00:11]} (47... Rxf3 $16 48. Qxf3 Qa3) 48. Kg2 {[%emt 0:03:00]} Rdf7 {[%emt 0:01:08]} 1/2-1/2

[Event "European School-ch 2019"]
[Site "Mamaia"]
[Date "2019.06.05"]
[Round "6.54"]
[White "Obada, Ema"]
[Black "Donghvani, Nia"]
[Result "1-0"]
[ECO "B52"]
[WhiteElo "1889"]
[BlackElo "1840"]
[Annotator "NA RC"]
[PlyCount "67"]
[EventDate "2019.05.31"]
[EventType "swiss"]
[EventCountry "ROU"]
[SourceTitle "playchess.com"]
[Source "ChessBase"]
[SourceQuality "1"]
[TimeControl "40/5400+30:1800+30"]

1. e4 {[%emt 0:00:00]} c5 {[%emt 0:00:00]} 2. Nf3 {[%emt 0:00:00]} d6 {[%emt 0:00:00]} 3. Bb5+ {[%emt 0:00:00]} Bd7 {[%emt 0:00:15]} 4. c4 {[%emt 0:00:00]} Nc6 {[%emt 0:01:02]} 5. d4 {[%emt 0:00:35]} cxd4 6. Nxd4 {[%emt 0:00:06]} g6 {[%emt 0:08:42]} 7. Nc3 {[%emt 0:02:24]} Bg7 {[%emt 0:00:34]} 8. Be3 {[%emt 0:00:49]} Nf6 {[%emt 0:03:56]} 9. f3 {[%emt 0:03:05]} Ne5 {[%emt 0:06:21]} 10. O-O {[%emt 0:17:55]} O-O {[%emt 0:08:26]} 11. Qe2 {[%emt 0:05:21]} Bxb5 {[%emt 0:10:09]} 12. cxb5 {[%emt 0:01:59]} Rc8 {[%emt 0:07:38]} 13. Nb3 {[%emt 0:10:45]} b6 {[%emt 0:01:05]} 14. a4 {[%emt 0:02:53]} e6 {[%emt 0:03:59]} 15. Rfd1 {[%emt 0:11:05]} Nc4 {[%emt 0:01:34]} 16. Bd4 {[%emt 0:00:20]} Qc7 {[%emt 0:02:50]} 17. Na2 {[%emt 0:04:58]} d5 {[%emt 0:03:39]} 18. Rac1 {[%emt 0:05:18]} e5 {[%emt 0:25:37]} 19. Bf2 {[%emt 0:00:15]} Bh6 {[%emt 0:00:20]} 20. Rc2 {[%emt 0:00:52]} Rfd8 {[%emt 0:05:21]} 21. Nb4 {[%emt 0:01:41]} dxe4 {[%emt 0:00:56]} 22. Rxd8+ {[%emt 0:01:19]} Qxd8 {[%emt 0:00:04]} 23. Nc6 {[%emt 0:01:38]} Ne3 {[%emt 0:03:15]} 24. Rd2 {[%emt 0:07:55]} Qxd2 {[%emt 0:03:15]} 25. Nxd2 {[%emt 0:00:49]} exf3 {[%emt 0:00:02]} 26. Nxf3 {[%emt 0:01:51]} Nfd5 {[%emt 0:00:28]} 27. Bxe3 {[%emt 0:01:19]} Bxe3+ {[%emt 0:00:05]} 28. Qxe3 {[%emt 0:00:09]} Nxe3 {[%emt 0:00:24]} 29. Ne7+ {[%emt 0:00:03]} Kg7 {[%emt 0:00:06]} 30. Nxc8 {[%emt 0:00:03]} e4 {[%emt 0:00:14]} 31. Nd2 {[%emt 0:00:16]} f5 {[%emt 0:00:11]} 32. Nxa7 {[%emt 0:00:07]} Nd1 {[%emt 0:00:08]} 33. a5 {[%emt 0:01:35]} e3 {[%emt 0:00:12]} 34. Nf3 {[%emt 0:00:05]} 1-0

[Event "European School-ch 2019"]
[Site "Mamaia"]
[Date "2019.06.05"]
[Round "6.55"]
[White "Ruzic, Pia Marie"]
[Black "Babayeva, Nasrin"]
[Result "0-1"]
[ECO "A27"]
[WhiteElo "1917"]
[BlackElo "1451"]
[Annotator "NA RC"]
[PlyCount "80"]
[EventDate "2019.05.31"]
[EventType "swiss"]
[EventCountry "ROU"]
[SourceTitle "playchess.com"]
[Source "ChessBase"]
[SourceQuality "1"]
[TimeControl "40/5400+30:1800+30"]

1. Nf3 {[%emt 0:00:00]} Nc6 {[%emt 0:00:00]} 2. c4 {[%emt 0:00:00]} e5 {[%emt 0:00:00]} 3. Nc3 {[%emt 0:00:06]} f5 {[%emt 0:00:04]} 4. d4 {[%emt 0:01:06]} e4 {[%emt 0:00:15]} 5. Ng5 {[%emt 0:00:04]} h6 {[%emt 0:00:55]} (5... Nf6 6. h4 Bb4 7. e3 d6 8. Bd2 O-O 9. g3 Bd7 10. Qb3 Bxc3 11. Bxc3 b6 12. O-O-O a5 13. Be2 a4 14. Qc2 {0-1 (65) Inarkiev,E (2693)-Leitao,R (2632) Tromsoe 2013}) 6. Nh3 {[%emt 0:00:05] A27: English Opening: Three Knights Variation} Nf6 {[%emt 0:00:31]} 7. Nf4 {[%emt 0:01:08]} Bb4 $146 {[%emt 0:03:39]} ({Predecessor:} 7... Ne7 8. Qa4 c6 9. d5 Qb6 10. d6 Ng4 11. c5 Qxc5 12. dxe7 Qxf2+ 13. Kd1 Bxe7 {1-0 (24) Idalgo,R (1854)-Maba,M (1500) Florianopolis 2017}) 8. Ng6 {[%emt 0:00:45]} Rg8 {[%emt 0:00:35]} 9. e3 {[%emt 0:07:26]} Ne7 {[%emt 0:13:36]} 10. Nxe7 {[%emt 0:01:54]} Bxe7 {[%emt 0:04:26]} 11. Qb3 {[%emt 0:07:19]} c6 {[%emt 0:07:09]} 12. Bd2 {[%emt 0:03:36]} Qb6 {[%emt 0:01:46]} 13. Qc2 {[%emt 0:16:30]} d6 {[%emt 0:03:19]} 14. c5 {[%emt 0:02:32]} Qc7 {[%emt 0:04:26]} 15. cxd6 {[%emt 0:00:24]} Qxd6 {[%emt 0:02:06]} 16. b4 {[%emt 0:05:37]} Be6 {[%emt 0:01:34]} 17. a3 {[%emt 0:04:19]} Kf7 {[%emt 0:01:49]} 18. Be2 {[%emt 0:01:11]} Rgc8 {[%emt 0:07:30]} 19. f3 $15 {[%emt 0:01:10]} Bd5 {[%emt 0:04:25]} 20. O-O {[%emt 0:00:39]} Kg8 {[%emt 0:04:26]} 21. Be1 {[%emt 0:03:59]} Qe6 {[%emt 0:00:47]} 22. Qd2 {[%emt 0:05:27]} Bd6 {[%emt 0:02:55]} 23. fxe4 {[%emt 0:06:54]} Nxe4 {[%emt 0:02:48]} 24. Nxe4 {[%emt 0:00:14]} Bxe4 {[%emt 0:00:36]} 25. Bf3 {[%emt 0:01:26]} Rf8 {[%emt 0:03:38]} 26. g3 {[%emt 0:08:28]} Qd5 {[%emt 0:01:35]} 27. Qg2 {[%emt 0:00:47]} Rae8 {[%emt 0:05:36]} 28. Bxe4 {[%emt 0:00:30]} Rxe4 {[%emt 0:01:05]} 29. Bd2 {[%emt 0:00:28]} Be7 {[%emt 0:01:00]} 30. Rac1 {[%emt 0:04:45]} Bg5 {[%emt 0:03:16]} 31. Rc3 {[%emt 0:02:47]} Qe6 {[%emt 0:01:26]} 32. Qf3 {[%emt 0:00:38]} g6 {[%emt 0:04:05]} 33. h4 {[%emt 0:00:28]} Bd8 {[%emt 0:04:24]} 34. Rc5 {[%emt 0:04:13]} Bc7 {[%emt 0:02:01]} 35. d5 {[%emt 0:00:19]} Qd6 {[%emt 0:00:17]} 36. dxc6 {[%emt 0:01:48]} Qxd2 {[%emt 0:00:13]} 37. Rd1 {[%emt 0:00:13]} Qxe3+ {[%emt 0:00:30]} 38. Qxe3 {[%emt 0:00:02]} Rxe3 {[%emt 0:00:10]} 39. cxb7 {[%emt 0:00:23]} Bb6 {[%emt 0:02:23]} 40. Rd7 {[%emt 0:00:00]} Re5 {[%emt 0:00:00]} 0-1

[Event "European School-ch 2019"]
[Site "Mamaia"]
[Date "2019.06.06"]
[Round "7.3"]
[White "Mammadov, Sadig"]
[Black "Zemnitskiy, Alexander"]
[Result "0-1"]
[ECO "B29"]
[WhiteElo "2208"]
[BlackElo "2024"]
[Annotator "RC"]
[PlyCount "94"]
[EventDate "2019.05.31"]
[EventType "swiss"]
[EventCountry "ROU"]
[SourceTitle "playchess.com"]
[Source "ChessBase"]
[SourceQuality "1"]
[TimeControl "40/5400+30:1800+30"]

1. e4 {[%emt 0:00:00]} c5 {[%emt 0:00:00]} 2. Nf3 {[%emt 0:00:00]} Nf6 {[%emt 0:00:00]} 3. Nc3 {[%emt 0:00:13]} d5 {[%emt 0:00:00]} 4. exd5 {[%emt 0:01:12]} Nxd5 {[%emt 0:00:00]} 5. Bc4 {[%emt 0:01:59]} e6 {[%emt 0:00:35]} 6. O-O {[%emt 0:00:47]} Nc6 {[%emt 0:00:45]} 7. d4 {[%emt 0:04:37]} cxd4 {[%emt 0:00:57]} 8. Nxd5 {[%emt 0:00:38]} exd5 {[%emt 0:00:01]} 9. Bb5 {[%emt 0:01:04]} a6 {[%emt 0:01:29]} 10. Re1+ {[%emt 0:00:38]} Be7 {[%emt 0:00:16]} 11. Bxc6+ {[%emt 0:00:06]} bxc6 {[%emt 0:00:16]} 12. Nxd4 {[%emt 0:00:42]} Bd7 {[%emt 0:00:26]} 13. Bg5 {[%emt 0:16:55]} f6 {[%emt 0:00:08]} 14. Bf4 {[%emt 0:03:16]} O-O {[%emt 0:00:52]} 15. Qe2 {[%emt 0:01:29]} Re8 {[%emt 0:02:57]} 16. Qd2 {[%emt 0:09:28]} Qb6 {[%emt 0:01:25]} 17. c3 {[%emt 0:00:24]} Bc5 {[%emt 0:00:42]} 18. Nb3 {[%emt 0:01:00]} Bf5 {[%emt 0:00:49]} 19. h3 {[%emt 0:02:48]} a5 {[%emt 0:01:47]} 20. Nd4 {[%emt 0:05:09]} Be4 {[%emt 0:02:06]} 21. f3 {[%emt 0:01:20]} Bg6 {[%emt 0:00:07]} 22. Kh2 {[%emt 0:00:24]} a4 {[%emt 0:06:37]} 23. Ne6 {[%emt 0:03:51]} Bf7 {[%emt 0:00:07]} 24. Nc7 {[%emt 0:01:18]} Rxe1 {[%emt 0:00:17]} 25. Nxa8 {[%emt 0:00:34]} Bg1+ {[%emt 0:00:08]} 26. Kg3 {[%emt 0:01:39]} Qf2+ {[%emt 0:03:02]} 27. Qxf2 {[%emt 0:00:13]} Bxf2+ {[%emt 0:00:01]} 28. Kxf2 {[%emt 0:00:08]} Rxa1 {[%emt 0:00:05]} 29. a3 {[%emt 0:00:31]} Rb1 {[%emt 0:00:02]} 30. Bd6 {[%emt 0:00:38]} Rxb2+ {[%emt 0:00:22]} 31. Ke3 {[%emt 0:00:17]} Rc2 {[%emt 0:06:38]} 32. Kd4 {[%emt 0:00:50]} Rd2+ {[%emt 0:00:32]} 33. Ke3 {[%emt 0:00:16]} Rxg2 {[%emt 0:01:06]} 34. Nb6 {[%emt 0:00:05]} d4+ {[%emt 0:00:25]} 35. Kxd4 {[%emt 0:00:54]} Bb3 {[%emt 0:00:35]} 36. Kc5 {[%emt 0:03:59]} Rc2 {[%emt 0:00:38]} 37. Kb4 {[%emt 0:00:19]} Kf7 {[%emt 0:01:03]} 38. Bc5 {[%emt 0:05:12]} Rb2 {[%emt 0:03:47]} 39. f4 {[%emt 0:00:47]} Bd1+ {[%emt 0:01:34]} 40. Kc4 {[%emt 0:00:00]} g5 {[%emt 0:00:00]} 41. fxg5 {[%emt 0:01:21]} fxg5 {[%emt 0:01:31]} 42. Be3 {[%emt 0:01:12]} Be2+ {[%emt 0:03:19]} 43. Kc5 {[%emt 0:00:10]} Rb3 {[%emt 0:00:15]} 44. Nxa4 {[%emt 0:00:23]} Bb5 {[%emt 0:00:23]} 45. Nb6 {[%emt 0:00:53]} Rxc3+ {[%emt 0:00:10]} 46. Kd4 {[%emt 0:00:03]} Rxa3 {[%emt 0:00:11]} 47. Nd7 {[%emt 0:00:37]} Rd3+ {[%emt 0:00:04]} 0-1

[Event "European School-ch 2019"]
[Site "Mamaia"]
[Date "2019.06.06"]
[Round "7.4"]
[White "Verbin, Valentina"]
[Black "Paraschiv, Paul-Alexandru"]
[Result "0-1"]
[ECO "C05"]
[WhiteElo "1961"]
[BlackElo "2055"]
[Annotator "NA RC"]
[PlyCount "50"]
[EventDate "2019.05.31"]
[EventType "swiss"]
[EventCountry "ROU"]
[SourceTitle "playchess.com"]
[Source "ChessBase"]
[SourceQuality "1"]
[TimeControl "40/5400+30:1800+30"]

1. e4 {[%emt 0:00:00]} e6 {[%emt 0:00:00]} 2. d4 {[%emt 0:00:00]} d5 {[%emt 0:00:00]} 3. Nd2 {[%emt 0:00:00]} Nf6 {[%emt 0:00:23]} 4. e5 {[%emt 0:00:01]} Nfd7 {[%emt 0:00:09]} 5. Bd3 {[%emt 0:00:11]} c5 {[%emt 0:00:05]} 6. c3 {[%emt 0:00:04]} Nc6 {[%emt 0:00:04]} 7. Ngf3 {[%emt 0:00:12]} f6 {[%emt 0:00:09]} 8. exf6 {[%emt 0:00:12]} Nxf6 {[%emt 0:00:05]} 9. O-O {[%emt 0:00:11]} cxd4 {[%emt 0:00:04]} 10. cxd4 {[%emt 0:00:11]} Bd6 {[%emt 0:00:04]} 11. b3 {[%emt 0:00:13]} O-O {[%emt 0:00:37] C06: French Tarrasch: 3...Nf6 4 e5 Nfd7 5 Bd3 main lines} 12. Bb2 {[%emt 0:00:13]} Nh5 {[%emt 0:06:48]} (12... Bd7 13. Ne5 Qb6 14. Nxd7 Nxd7 15. Qg4 Rae8 16. Nf3 Nf6 17. Qh4 e5 18. dxe5 Nxe5 19. Bxe5 Bxe5 {1-0 (66) Fedorchuk,S (2669)-Piorun,K (2517) Wroclaw 2014}) 13. Rc1 $146 {[%emt 0:08:24]} ({Predecessor:} 13. g3 g6 14. Qe2 Bd7 15. Rac1 Rc8 16. Ne5 Nxe5 17. dxe5 Bc5 18. Nf3 Qe7 19. Rc2 {1-0 (50) Anurag,M (2484)-Elgersma,O (2150) Dieren 2018}) 13... Nf4 {[%emt 0:01:17]} 14. Bb1 {[%emt 0:00:38]} Nb4 {[%emt 0:01:01]} 15. Rc3 {[%emt 0:02:23]} Bd7 {[%emt 0:03:24]} 16. Re1 {[%emt 0:11:25]} Qf6 {[%emt 0:02:44]} 17. a3 {[%emt 0:06:17]} Nc6 {[%emt 0:01:15]} 18. Rce3 {[%emt 0:01:52]} Qh6 {[%emt 0:11:27]} 19. b4 {[%emt 0:05:29]} (19. Nf1 $11) 19... a5 {[%emt 0:04:06]} 20. Ne5 $2 {[%emt 0:19:52]} (20. b5 $11 {and White has nothing to worry.} Ne7 21. a4) 20... Be8 $2 {[%emt 0:04:17]} ({Black should try} 20... axb4 $19 21. Ndf3 (21. Nxd7 $2 Nxg2 {[%mdl 64] Double Attack, Discovered Attack} 22. Nf1 Nxe3 $19) 21... Nxe5 22. Nxe5 Bb5) 21. bxa5 $2 {[%emt 0:08:34] [#]} (21. Ng4 $11 Qh5 22. b5) 21... Nxe5 $1 {[%emt 0:02:28]} ({Weaker is} 21... Rxa5 22. Ng4 $11) 22. dxe5 {[%emt 0:03:44]} Bc5 {[%emt 0:00:28]} 23. Rg3 $19 {[%emt 0:01:29]} (23. Nf1) 23... Bxf2+ {[%emt 0:03:01]} 24. Kxf2 {[%emt 0:00:13]} Nh3+ {[%emt 0:00:04]} 25. Ke2 {[%emt 0:01:17]} Bb5+ {[%emt 0:00:06]} 0-1

[Event "European School-ch 2019"]
[Site "Mamaia"]
[Date "2019.06.06"]
[Round "7.5"]
[White "Farcadi, Hunor"]
[Black "Celik, Eylul"]
[Result "1-0"]
[ECO "D00"]
[WhiteElo "2049"]
[BlackElo "1841"]
[Annotator "NA RC"]
[PlyCount "89"]
[EventDate "2019.05.31"]
[EventType "swiss"]
[EventCountry "ROU"]
[SourceTitle "playchess.com"]
[Source "ChessBase"]
[SourceQuality "1"]
[TimeControl "40/5400+30:1800+30"]

1. d4 {[%emt 0:00:00]} d5 {[%emt 0:00:00]} 2. Bf4 {[%emt 0:00:21]} c5 {[%emt 0:00:00]} 3. e3 {[%emt 0:00:09]} Nc6 {[%emt 0:00:00]} 4. c3 {[%emt 0:00:22]} Nf6 {[%emt 0:00:00]} 5. Nd2 {[%emt 0:00:03]} Bf5 {[%emt 0:00:20]} 6. Ngf3 {[%emt 0:00:08]} Qb6 {[%emt 0:02:57]} 7. Nh4 {[%emt 0:00:31]} e6 {[%emt 0:05:10]} 8. Nxf5 {[%emt 0:03:26]} exf5 {[%emt 0:00:02]} 9. Qb3 {[%emt 0:04:04]} Be7 {[%emt 0:08:12]} 10. dxc5 {[%emt 0:19:14]} Bxc5 {[%emt 0:02:09]} 11. Bd3 {[%emt 0:01:23]} Ne4 {[%emt 0:07:03]} 12. Qxb6 {[%emt 0:17:38]} Bxb6 {[%emt 0:00:23]} 13. Nxe4 {[%emt 0:09:02]} fxe4 {[%emt 0:03:19]} 14. Bc2 {[%emt 0:00:53]} f6 {[%emt 0:06:08]} 15. O-O-O {[%emt 0:02:29]} O-O-O {[%emt 0:06:28]} 16. Rd2 {[%emt 0:06:27]} (16. c4 $5) 16... Rd7 {[%emt 0:02:31]} 17. c4 $16 {[%emt 0:03:45]} dxc4 {[%emt 0:01:46]} 18. Rxd7 {[%emt 0:00:11]} Kxd7 {[%emt 0:00:01]} 19. Bxe4 {[%emt 0:00:16]} g6 {[%emt 0:09:48]} 20. Rd1+ {[%emt 0:01:26]} Ke7 {[%emt 0:00:38]} 21. Bxc6 {[%emt 0:03:53]} bxc6 {[%emt 0:00:01]} 22. Kc2 {[%emt 0:00:14]} g5 {[%emt 0:01:25]} 23. Bg3 {[%emt 0:00:20]} h5 {[%emt 0:00:50]} 24. Kc3 {[%emt 0:02:12]} h4 {[%emt 0:00:16]} 25. Bd6+ {[%emt 0:00:04]} Ke6 {[%emt 0:00:00]} 26. Ba3 {[%emt 0:00:15]} Bc7 {[%emt 0:01:41]} 27. h3 {[%emt 0:02:10]} Be5+ {[%emt 0:01:43]} 28. Kxc4 {[%emt 0:00:16]} f5 {[%emt 0:00:05]} 29. Bc5 {[%emt 0:03:13]} g4 {[%emt 0:01:11]} 30. Bd4 {[%emt 0:04:48]} Rd8 {[%emt 0:01:17]} 31. Rh1 {[%emt 0:01:46]} g3 {[%emt 0:01:18]} 32. f4 {[%emt 0:03:56]} Bc7 {[%emt 0:00:57]} 33. Rc1 {[%emt 0:02:19]} Rd5 {[%emt 0:01:35]} 34. Kd3 {[%emt 0:02:19]} Kd6 {[%emt 0:01:59]} 35. e4 {[%emt 0:00:50]} fxe4+ {[%emt 0:00:47]} 36. Kxe4 {[%emt 0:00:10]} Bb6 {[%emt 0:00:28]} 37. Be5+ {[%emt 0:02:25]} Kd7 {[%emt 0:00:04]} 38. Rc3 {[%emt 0:01:05]} Ke7 {[%emt 0:01:59]} 39. Rd3 {[%emt 0:00:36]} Ra5 {[%emt 0:00:45]} 40. a3 {[%emt 0:00:00]} Ra4+ {[%emt 0:00:00]} 41. Kf5 {[%emt 0:01:44]} Rc4 {[%emt 0:00:43]} 42. Rc3 {[%emt 0:00:13]} Rxc3 {[%emt 0:00:24]} 43. Bxc3 {[%emt 0:00:11]} Kf7 {[%emt 0:00:10]} 44. Bf6 {[%emt 0:00:10]} Bf2 {[%emt 0:00:07]} 45. Bxh4 {[%emt 0:00:07]} 1-0

[Event "European School-ch 2019"]
[Site "Mamaia"]
[Date "2019.06.06"]
[Round "7.9"]
[White "Balan, Bogdan"]
[Black "Neshev, Nikola"]
[Result "1-0"]
[ECO "E20"]
[WhiteElo "2027"]
[BlackElo "1370"]
[Annotator "NA RC"]
[PlyCount "46"]
[EventDate "2019.05.31"]
[EventType "swiss"]
[EventCountry "ROU"]
[SourceTitle "playchess.com"]
[Source "ChessBase"]
[SourceQuality "1"]
[TimeControl "40/5400+30:1800+30"]

{[%evp 8,32,0,6,32767,32767,32767,32767,32767,32767,32767,-45,-39,32767,-37,-40,8,-56,32767,-130,-62,-64,0,-27,0,-33,229]} 1. d4 {[%emt 0:00:00]} Nf6 {[%emt 0:00:00]} 2. c4 {[%emt 0:00:00]} e6 {[%emt 0:00:00]} 3. Nc3 {[%emt 0:01:15]} Bb4 {[%emt 0:00:00]} 4. f3 {[%emt 0:04:40]} c5 {[%emt 0:07:44]} 5. d5 {[%emt 0:00:36]} b5 {[%emt 0:00:46]} 6. e4 {[%emt 0:00:52]} O-O {[%emt 0:01:09]} 7. Bd2 {[%emt 0:27:31]} Bxc3 {[%emt 0:05:52]} 8. Bxc3 {[%emt 0:00:25]} b4 {[%emt 0:00:05]} 9. Be5 {[%emt 0:13:21]} d6 {[%emt 0:00:16]} 10. Bg3 {[%emt 0:00:43]} exd5 {[%emt 0:01:59]} 11. cxd5 {[%emt 0:03:19]} Re8 {[%emt 0:01:32]} 12. Be2 {[%emt 0:01:13]} (12. Bb5 $11) 12... Nh5 {[%emt 0:09:39]} 13. Bf2 {[%emt 0:07:24] [#]} (13. Bb5 $15 Nxg3 14. hxg3) 13... Nf4 {[%emt 0:00:16]} (13... f5 $1 $17 14. Nh3 fxe4 15. fxe4 Bxh3 16. gxh3 Nf4) 14. Bb5 {[%emt 0:05:11]} Nxg2+ {[%emt 0:03:53]} ({Better is} 14... Bd7 $15 15. Bf1 f5) 15. Kf1 {[%emt 0:00:25]} Nf4 {[%emt 0:00:05]} 16. Bg3 {[%emt 0:01:27]} Qb6 $18 {[%emt 0:12:32]} (16... Nh5 $11 {and Black has nothing to worry.}) 17. Qa4 {[%emt 0:02:39]} Nh3 {[%emt 0:22:38]} 18. Bxe8 {[%emt 0:02:11]} Nxg1 {[%emt 0:00:08]} 19. Rxg1 {[%emt 0:00:50]} Bh3+ {[%emt 0:00:18]} 20. Ke2 {[%emt 0:00:37]} c4 {[%emt 0:00:20]} 21. Bf2 {[%emt 0:02:41]} Qc7 {[%emt 0:00:25]} 22. Bc6 {[%emt 0:01:07]} c3 {[%emt 0:01:16]} 23. bxc3 {[%emt 0:00:17]} bxc3 {[%emt 0:00:44]} 1-0

[Event "European School-ch 2019"]
[Site "Mamaia"]
[Date "2019.06.06"]
[Round "7.10"]
[White "Padurariu, Mihai-Edward"]
[Black "Dotsenko, Makar"]
[Result "1/2-1/2"]
[ECO "B20"]
[WhiteElo "2090"]
[BlackElo "1610"]
[Annotator "NA RC"]
[PlyCount "86"]
[EventDate "2019.05.31"]
[EventType "swiss"]
[EventCountry "ROU"]
[SourceTitle "playchess.com"]
[Source "ChessBase"]
[SourceQuality "1"]
[TimeControl "40/5400+30:1800+30"]

1. e4 {[%emt 0:00:00]} c5 {[%emt 0:00:00]} 2. b3 {[%emt 0:00:00]} d6 {[%emt 0:00:02]} 3. Bb2 {[%emt 0:00:04]} Nc6 {[%emt 0:01:24]} 4. f4 {[%emt 0:01:43]} e5 {[%emt 0:01:55]} 5. Nf3 {[%emt 0:04:51]} exf4 {[%emt 0:16:34]} 6. Bb5 {[%emt 0:00:06]} Bd7 {[%emt 0:02:47]} 7. O-O {[%emt 0:04:25]} Nf6 {[%emt 0:05:10]} 8. Bxc6 {[%emt 0:02:19]} Bxc6 {[%emt 0:03:34]} 9. e5 {[%emt 0:00:33]} dxe5 {[%emt 0:01:49]} 10. Nxe5 {[%emt 0:00:13]} Rc8 {[%emt 0:04:51]} 11. Qe2 {[%emt 0:31:06]} Be7 $1 {[%emt 0:08:32]} 12. Re1 {[%emt 0:03:30]} Rc7 {[%emt 0:06:52]} 13. Na3 {[%emt 0:03:35]} O-O {[%emt 0:04:22]} 14. Nxc6 $11 {[%emt 0:00:04]} bxc6 {[%emt 0:00:01]} 15. Qe5 {[%emt 0:08:02]} Bd6 {[%emt 0:12:29]} 16. Qg5 {[%emt 0:02:15]} h6 {[%emt 0:10:14]} 17. Qf5 {[%emt 0:01:35]} Nd5 {[%emt 0:01:57]} 18. Nc4 {[%emt 0:00:46]} Be7 {[%emt 0:01:25]} 19. Be5 {[%emt 0:06:46]} Rd7 {[%emt 0:03:47]} 20. Bxf4 {[%emt 0:04:06]} Nxf4 {[%emt 0:00:07]} 21. Qxf4 {[%emt 0:00:04]} Bg5 {[%emt 0:01:49]} 22. Qf3 {[%emt 0:01:24]} Bxd2 {[%emt 0:02:15]} 23. Rf1 {[%emt 0:01:53]} Rd5 {[%emt 0:01:46]} 24. Rad1 {[%emt 0:00:44]} Bg5 {[%emt 0:00:56]} 25. Rde1 {[%emt 0:00:04]} Qc7 {[%emt 0:01:11]} 26. Re4 {[%emt 0:01:10]} Rd4 {[%emt 0:03:03]} 27. Rfe1 {[%emt 0:00:22]} Qd8 {[%emt 0:01:32]} 28. Qe2 {[%emt 0:03:09]} Rxe4 {[%emt 0:00:30]} 29. Qxe4 {[%emt 0:00:04]} Qd4+ {[%emt 0:00:30]} 30. Kh1 {[%emt 0:01:20]} Qxe4 {[%emt 0:01:30]} 31. Rxe4 {[%emt 0:00:05]} Rd8 {[%emt 0:00:11]} 32. Re1 {[%emt 0:01:48]} Bf6 {[%emt 0:00:43]} 33. g3 {[%emt 0:00:50]} g5 {[%emt 0:01:07]} 34. Kg2 {[%emt 0:01:31]} Kg7 {[%emt 0:00:09]} 35. Re2 {[%emt 0:00:51]} Rd7 {[%emt 0:00:37]} 36. Na5 {[%emt 0:00:46]} Rd6 {[%emt 0:00:55]} 37. Nb7 {[%emt 0:03:40]} Rd5 {[%emt 0:00:55]} 38. c4 {[%emt 0:01:16]} Rf5 {[%emt 0:00:46]} 39. Nd6 {[%emt 0:01:31]} Re5 {[%emt 0:00:33]} 40. Rxe5 {[%emt 0:00:00]} Bxe5 {[%emt 0:00:00]} 41. Nc8 {[%emt 0:07:50]} a5 {[%emt 0:04:12]} 42. Ne7 {[%emt 0:03:39]} Kf6 {[%emt 0:08:09]} 43. Nxc6 {[%emt 0:00:17]} Bc7 {[%emt 0:00:24]} 1/2-1/2